bitfinex/quotes_ETHUSD_20250215
["timestamp","ask_amount","ask_price","bid_price","bid_amount"]
[1739601352101,3.68448,2714.1,2713.6,0.7995]
[1739601353583,4.5718459,2714.1,2713.6,0.7995]
[1739601355223,3.68469,2714.0,2713.6,0.5495]
[1739601355387,3.68495,2713.8,2713.6,0.5495]
[1739601356917,7.36994,2713.8,2713.6,0.5495]
[1739601357219,3.6851,2713.7,2713.3,3.0]
[1739601357579,3.6851,2713.7,2713.2,3.0]
[1739601358322,3.6851,2713.7,2713.2,3.7562]
[1739601360239,3.6851,2713.7,2713.2,0.7562]
[1739601362120,3.6851,2713.7,2713.2,4.44187]
[1739601364298,3.6851,2713.7,2713.2,3.68567]
[1739601365127,0.736994,2713.8,2713.3,3.68547]
[1739601365316,3.68488,2713.8,2713.1,6.68573]
[1739601365623,3.68488,2713.8,2713.2,3.68565]
[1739601370945,7.36985,2713.8,2713.2,3.68565]
[1739601371445,3.68488,2713.8,2713.2,3.68565]
[1739601372216,7.36985,2713.8,2713.2,3.68565]
[1739601372418,3.68488,2713.8,2713.2,3.68565]
[1739601372718,7.36986,2713.8,2713.2,3.68565]
[1739601372918,3.68488,2713.8,2713.2,3.68565]
[1739601373350,3.68488,2713.8,2713.1,3.0]
[1739601373550,3.68533,2713.5,2712.9,3.39621159]
[1739601373750,3.68533,2713.5,2712.9,6.68606]
[1739601374117,3.68541,2713.4,2712.9,3.0]
[1739601374751,3.68606,2713.0,2712.5,3.14481587]
[1739601375052,3.68606,2713.0,2712.4,3.68665]
[1739601375259,4.423236,2713.0,2712.2,6.83180587]
[1739601375440,0.737176,2713.0,2712.2,3.14481587]
[1739601375622,3.6866,2712.6,2712.2,0.7876]
[1739601375955,0.815,2712.3,2711.8,3.68748]
[1739601376250,3.68693,2712.3,2711.6,7.61859131]
[1739601376560,3.68693,2712.3,2711.7,3.0]
[1739601376561,0.815,2712.3,2711.7,3.0]
[1739601376751,0.815,2712.3,2711.7,3.6877]
[1739601377260,3.68678,2712.4,2711.4,3.68809]
[1739601377261,4.50204,2712.2,2711.4,3.68809]
[1739601377419,4.50204,2712.2,2711.5,3.0]
[1739601378128,4.50204,2712.2,2711.3,3.14481587]
[1739601378334,5.05204,2712.2,2710.9,3.14481587]
[1739601378739,5.05204,2712.2,2711.0,3.68854]
[1739601378942,5.05204,2712.2,2711.1,3.0]
[1739601379320,5.05204,2712.2,2711.0,3.68854]
[1739601379840,4.50204,2712.2,2711.2,3.6884]
[1739601380056,4.50204,2712.2,2711.2,4.476]
[1739601380263,1.079,2712.2,2711.3,3.0]
[1739601380562,4.50204,2712.2,2711.3,3.0]
[1739601380855,6.2082198,2712.2,2711.3,6.68815]
[1739601381423,6.2082198,2712.2,2711.3,3.0]
[1739601381622,5.838,2712.4,2711.7,3.7876]
[1739601381852,5.838,2712.4,2712.1,3.8383406]
[1739601382356,5.838,2712.4,2712.3,3.6869]
[1739601382531,5.838,2712.4,2712.1,3.8383406]
[1739601382719,5.838,2712.4,2712.2,3.68702]
[1739601384262,5.838,2712.4,2712.1,0.1512706]
[1739601384553,5.838,2712.4,2712.2,3.68701]
[1739601384859,5.838,2712.4,2712.3,3.6869]
[1739601385786,5.838,2712.4,2712.3,7.4909]
[1739601387883,4.47354,2713.1,2712.4,3.0]
[1739601388186,4.47354,2713.1,2712.4,6.68668]
[1739601388916,5.31585,2713.1,2712.4,6.68668]
[1739601389033,3.68598,2713.0,2712.4,6.68668]
[1739601389765,1.62991,2713.1,2712.4,6.68668]
[1739601389968,0.7876,2713.1,2712.6,3.6864]
[1739601390356,0.7876,2713.1,2712.7,3.68635]
[1739601390671,0.7876,2713.1,2712.6,3.6864]
[1739601390968,4.47344,2713.1,2712.4,6.68671]
[1739601391136,4.47344,2713.1,2712.5,3.68662]
[1739601391337,4.947184,2713.1,2712.4,6.68667]
[1739601391979,3.68598,2713.0,2712.4,6.68667]
[1739601392159,1.261344,2713.1,2712.4,6.68667]
[1739601392668,4.947194,2713.1,2712.4,6.68667]
[1739601393973,3.68595,2713.0,2712.4,6.68667]
[1739601394174,0.8633144,2712.9,2712.4,6.68667]
[1739601394375,0.7876,2713.1,2712.5,3.68662]
[1739601394576,0.7876,2713.1,2712.7,3.68628]
[1739601394752,5.31,2713.6,2712.7,3.68628]
[1739601394753,0.7876,2713.4,2712.9,3.68603]
[1739601395073,0.7876,2713.4,2713.0,3.68595]
[1739601395238,1.792276,2713.4,2713.0,3.68595]
[1739601396338,1.792276,2713.4,2712.8,6.68615]
[1739601396975,1.792276,2713.4,2712.9,3.68596]
[1739601398743,1.004676,2713.4,2712.9,3.68596]
[1739601398941,1.156088,2713.8,2713.3,3.68543]
[1739601399170,1.156088,2713.8,2713.4,3.68536]
[1739601399366,1.156088,2713.8,2713.3,3.68543]
[1739601400582,1.156088,2713.8,2713.3,3.58623]
[1739601404587,1.156088,2713.8,2713.4,3.68539]
[1739601404755,0.7876,2713.8,2713.5,3.68527]
[1739601404957,6.104,2714.2,2713.7,3.685]
[1739601405367,5.84,2714.2,2713.7,3.685]
[1739601406395,9.52433,2714.2,2713.6,3.784]
[1739601406563,10.954881,2714.2,2713.6,7.46903]
[1739601406765,7.270551,2714.2,2713.7,3.68488]
[1739601407067,5.84,2714.2,2713.6,3.784]
[1739601407275,5.84,2714.2,2713.6,7.46912]
[1739601407899,9.52436,2714.2,2713.6,6.68512]
[1739601408105,9.52436,2714.2,2713.6,3.0]
[1739601408274,5.84,2714.2,2713.9,3.68472]
[1739601409394,5.84,2714.2,2713.6,3.0]
[1739601409679,10.586475,2714.2,2713.6,6.68512]
[1739601410322,6.902115,2714.2,2713.6,3.0]
[1739601410481,5.84,2714.2,2713.7,3.68488]
[1739601415584,9.52444,2714.2,2713.6,6.68511]
[1739601416115,4.48188,2714.1,2713.6,3.0]
[1739601416415,4.48195,2714.1,2713.6,3.0]
[1739601416587,1.400639,2714.0,2713.6,3.0]
[1739601417815,0.7974,2714.1,2713.6,3.0]
[1739601418317,4.48191,2714.1,2713.6,3.0]
[1739601418820,4.48191,2714.1,2713.6,6.68513]
[1739601419118,4.48191,2714.1,2713.6,3.0]
[1739601421209,3.68474,2713.9,2713.5,3.0]
[1739601421611,0.7974,2713.8,2713.2,4.45626]
[1739601421923,0.7974,2713.8,2713.3,3.68553]
[1739601422420,0.7974,2713.8,2713.4,3.0]
[1739601423129,0.7974,2713.8,2713.4,6.68529]
[1739601423335,0.7974,2713.8,2713.5,3.68515]
[1739601423719,0.7974,2714.2,2713.6,3.68505]
[1739601423930,1.48857716,2714.2,2713.6,3.68505]
[1739601424536,1.48857716,2714.2,2713.8,3.68482]
[1739601426333,1.48857716,2714.2,2713.6,3.68505]
[1739601426539,1.48857716,2714.2,2713.7,3.68499]
[1739601427236,0.7974,2714.2,2713.8,3.68481]
[1739601428136,0.7974,2714.2,2713.8,3.68478]
[1739601428512,0.7974,2714.2,2713.7,3.68499]
[1739601428723,0.7974,2714.0,2713.4,6.6853]
[1739601429101,0.7974,2714.0,2713.4,10.3706]
[1739601429302,0.7974,2713.8,2713.3,6.68554]
[1739601429503,4.48228,2713.8,2713.3,6.68554]
[1739601430334,4.48228,2713.8,2713.2,3.68567]
[1739601431102,0.7974,2713.8,2713.3,3.68553]
[1739601432610,0.7974,2713.8,2713.5,3.0]
[1739601432856,0.7974,2713.8,2713.1,3.0]
[1739601433006,0.7974,2713.8,2713.5,3.0]
[1739601434443,0.7974,2713.8,2713.5,6.68525]
[1739601435253,0.7797,2714.1,2713.6,6.82992587]
[1739601435461,0.7797,2714.1,2713.8,3.68478]
[1739601435760,0.7797,2714.3,2713.8,3.68478]
[1739601436470,0.7797,2714.3,2714.0,3.68454]
[1739601436760,1.0437,2714.6,2714.1,3.68444]
[1739601437222,0.7797,2714.6,2714.0,3.68454]
[1739601437410,0.7797,2714.6,2714.2,3.68429]
[1739601439646,0.7797,2714.6,2714.3,3.68418]
[1739601439818,5.31,2714.8,2714.3,3.68418]
[1739601440144,10.56199,2714.9,2714.2,4.45529]
[1739601440845,3.68363,2714.8,2714.2,4.45529]
[1739601441012,3.68363,2714.8,2714.2,3.68429]
[1739601441640,3.68367,2714.7,2714.1,3.0]
[1739601441943,3.68363,2714.8,2714.1,7.93720713]
[1739601442442,3.68365,2714.7,2714.1,4.25278713]
[1739601442807,3.68365,2714.7,2714.1,7.93722713]
[1739601443204,3.68365,2714.7,2714.1,4.25278713]
[1739601444369,3.68365,2714.7,2714.1,7.93721713]
[1739601444565,3.68365,2714.7,2714.1,4.25278713]
[1739601445010,3.68393,2714.5,2714.1,3.0]
[1739601445210,3.68393,2714.5,2714.0,4.45559]
[1739601445410,3.68393,2714.5,2714.0,0.771]
[1739601446328,3.68393,2714.5,2714.0,4.45559]
[1739601447349,3.68393,2714.5,2714.0,0.771]
[1739601448554,7.36798,2714.5,2714.0,0.771]
[1739601448740,3.68393,2714.5,2714.0,0.771]
[1739601448919,3.68414,2714.4,2714.0,0.771]
[1739601449116,3.68414,2714.4,2713.9,3.0]
[1739601449751,7.36796,2714.5,2713.9,3.0]
[1739601449955,3.68393,2714.5,2713.9,3.0]
[1739601450252,3.68393,2714.5,2713.9,3.65987093]
[1739601451456,3.68393,2714.5,2713.9,3.0]
[1739601451835,3.68406,2714.4,2713.9,6.68471]
[1739601452518,1.0395,2714.6,2713.9,6.68471]
[1739601452723,3.68396,2714.5,2713.9,6.68471]
[1739601452920,4.49865,2714.4,2713.9,3.0]
[1739601453223,0.8146,2714.4,2713.9,3.0]
[1739601454030,0.8146,2714.4,2713.9,6.68469]
[1739601455328,0.8146,2714.4,2713.9,3.0]
[1739601455735,0.8146,2714.4,2714.0,3.68457]
[1739601455926,0.8146,2714.4,2714.0,4.69823221]
[1739601456127,4.76143,2714.6,2714.0,4.69823221]
[1739601456457,1.0776,2714.6,2714.0,3.68457]
[1739601456758,3.68405,2714.4,2713.9,3.0]
[1739601459262,3.68405,2714.4,2713.9,3.0]
[1739601460155,3.68405,2714.4,2713.9,6.68472]
[1739601460326,3.68405,2714.4,2713.9,3.0]
[1739601460862,3.68419,2714.3,2713.9,3.0]
[1739601461260,3.68441,2714.2,2713.8,0.7611]
[1739601461457,4.48425,2714.1,2713.5,0.8316]
[1739601461662,3.68482,2713.9,2713.5,0.8316]
[1739601463468,3.68487,2713.8,2713.5,0.8316]
[1739601463670,3.68482,2713.9,2713.5,0.8316]
[1739601466864,3.68501,2713.7,2713.5,0.8316]
[1739601467164,3.68487,2713.8,2713.5,0.8316]
[1739601468170,3.68469,2714.0,2713.5,0.8316]
[1739601468932,3.68475,2713.9,2713.5,0.8316]
[1739601472640,3.68464,2714.0,2713.5,0.8316]
[1739601472837,4.48428,2714.1,2713.5,0.8316]
[1739601473075,3.68473,2713.9,2713.5,0.8316]
[1739601473683,4.133048,2714.0,2713.5,0.8316]
[1739601476783,3.68481,2713.9,2713.5,0.8316]
[1739601478081,4.133048,2714.0,2713.5,0.8316]
[1739601486160,3.68475,2713.9,2713.5,0.8316]
[1739601486965,0.448428,2714.0,2713.5,0.8316]
[1739601487301,0.73799486,2714.3,2713.9,0.8226]
[1739601487302,0.262,2714.3,2713.9,0.8226]
[1739601487598,3.68392,2714.5,2713.9,4.50728]
[1739601487899,3.94592,2714.5,2714.1,0.8226]
[1739601488071,0.262,2714.5,2714.1,0.8226]
[1739601489302,5.31,2714.6,2714.1,0.8226]
[1739601489503,0.262,2714.6,2714.1,0.8226]
[1739601489663,14.8307,2714.7,2714.1,1.42586211]
[1739601489870,11.147,2714.7,2714.2,4.5069]
[1739601490484,11.147,2714.7,2714.3,0.8226]
[1739601491407,14.83067,2714.7,2714.3,0.8226]
[1739601492275,3.68392,2714.5,2713.8,0.8301]
[1739601492476,3.68429,2714.3,2713.8,0.8301]
[1739601492706,3.68434,2714.2,2713.8,0.8301]
[1739601493308,4.45465,2714.4,2713.8,0.8301]
[1739601493606,3.68421,2714.3,2713.8,0.8301]
[1739601496907,2.9815,2714.4,2713.8,0.8301]
[1739601497109,15.0927,2714.7,2714.1,3.0]
[1739601497314,15.0927,2714.7,2714.2,0.8301]
[1739601497477,15.0927,2714.7,2714.2,4.51441]
[1739601498381,11.409,2714.7,2714.3,0.8301]
[1739601501016,6.099,2714.7,2714.3,0.8301]
[1739601501312,9.78267,2714.7,2714.3,0.8301]
[1739601501475,11.129268,2714.7,2714.3,0.8301]
[1739601501675,3.68395,2714.5,2714.3,0.8301]
[1739601502609,11.129268,2714.7,2714.3,0.8301]
[1739601504105,5.292268,2714.7,2714.3,0.8301]
[1739601504305,3.94567,2714.7,2714.3,0.8301]
[1739601505115,3.68381,2714.6,2714.3,0.8301]
[1739601508621,4.49583,2714.5,2714.0,0.8199]
[1739601508834,3.6842,2714.3,2713.7,0.8199]
[1739601509037,7.36851,2714.3,2713.7,0.8199]
[1739601509195,7.36851,2714.3,2713.7,3.8199]
[1739601509593,3.68433,2714.2,2713.7,3.8199]
[1739601510329,3.68446,2714.1,2713.7,3.8199]
[1739601513602,3.6846,2714.0,2713.7,3.8199]
[1739601513809,3.68446,2714.1,2713.7,3.8199]
[1739601514008,3.68459,2714.0,2713.7,3.8199]
[1739601514436,4.052916,2714.1,2713.7,0.8199]
[1739601515696,3.68468,2714.0,2713.7,0.8199]
[1739601515998,4.49658,2714.0,2713.6,0.0648796]
[1739601516643,3.68482,2713.9,2713.6,0.0648796]
[1739601516818,3.68447,2714.1,2713.6,0.0648796]
[1739601517000,3.6846,2714.0,2713.6,0.0648796]
[1739601517207,0.1871204,2713.5,2713.4,0.8199]
[1739601518527,0.1871204,2713.5,2713.4,7.50531]
[1739601522933,0.1871204,2713.5,2713.4,3.8199]
[1739601542649,0.1871204,2713.5,2713.4,7.50531]
[1739601542845,0.3367204,2713.5,2713.4,8.77694517]
[1739601543349,0.3367204,2713.5,2713.4,5.09153517]
[1739601544848,0.3367204,2713.5,2713.4,8.77694517]
[1739601553045,0.3367204,2713.5,2713.4,7.95704517]
[1739601553243,0.3367204,2713.5,2713.4,3.0]
[1739601554196,0.3367204,2713.5,2713.4,7.43571]
[1739601557880,0.3367204,2713.5,2713.4,8.96130171]
[1739601576309,0.3367204,2713.5,2713.4,7.43571]
[1739601576784,0.3367204,2713.5,2713.4,8.96130171]
[1739601576990,0.3367204,2713.5,2713.4,10.83844548]
[1739601577911,0.3367204,2713.5,2713.4,9.31285377]
[1739601583903,0.3367204,2713.5,2713.4,10.83844548]
[1739601585395,0.3367204,2713.5,2713.4,11.38844548]
[1739601589000,0.3367204,2713.5,2713.4,11.13644548]
[1739601606231,0.3367204,2713.5,2713.4,8.86055377]
[1739601608841,0.3367204,2713.5,2713.4,10.38614548]
[1739601615542,4e-07,2713.5,2713.4,11.25144548]
[1739601615719,4e-07,2713.5,2713.4,16.63144548]
[1739601617647,4e-07,2713.5,2713.4,16.81553111]
[1739601617851,4e-07,2713.5,2713.4,16.63144548]
[1739601618214,4e-07,2713.5,2713.4,16.53144548]
[1739601618833,4e-07,2713.5,2713.4,16.73144548]
[1739601619641,4e-07,2713.5,2713.4,16.83144548]
[1739601620044,4e-07,2713.5,2713.4,16.73144548]
[1739601620346,0.7595,2714.4,2713.7,0.7653]
[1739601620648,0.7595,2714.4,2714.3,8.20978171]
[1739601625775,0.7595,2714.4,2714.3,10.58668377]
[1739601626075,0.7949,2714.9,2714.8,6.68341]
[1739601626256,0.7949,2714.9,2714.8,8.20900171]
[1739601640584,0.7949,2714.9,2714.8,3.0]
[1739601641223,0.7949,2714.9,2714.8,8.20910171]
[1739601645531,2.37870512,2715.0,2714.9,6.68337]
[1739601647333,2.37870512,2715.0,2714.9,3.0]
[1739601651850,2.37870512,2715.0,2714.9,6.68337]
[1739601656660,2.37870512,2715.0,2714.8,3.0]
[1739601656954,0.8091,2714.9,2714.7,3.0]
[1739601658448,0.8091,2714.9,2714.7,6.68361]
[1739601658640,0.8091,2714.9,2714.7,3.0]
[1739601660690,0.8091,2714.9,2714.7,6.6836]
[1739601661767,0.8091,2714.9,2714.8,3.68351]
[1739601662063,0.8091,2714.9,2714.8,5.20910171]
[1739601662653,2.37870512,2715.0,2714.9,6.68337]
[1739601676119,2.37870512,2715.0,2714.9,6.58337]
[1739601676918,0.8064,2714.9,2714.6,3.68373]
[1739601677216,0.8064,2714.9,2714.6,5.20932171]
[1739601677518,0.8064,2714.9,2714.7,3.68364]
[1739601678019,2.37870512,2715.0,2714.9,3.68337]
[1739601678222,2.37870512,2715.0,2714.9,6.68337]
[1739601691223,3.14000512,2715.0,2714.9,3.0]
[1739601691546,3.45400563,2715.0,2714.9,3.0]
[1739601691744,3.14000512,2715.0,2714.9,3.0]
[1739601703054,3.14000512,2715.0,2714.9,3.0]
[1739601708466,2.37870512,2715.0,2714.9,3.0]
[1739601708640,2.37870512,2715.0,2714.9,6.68337]
[1739601709263,2.37870512,2715.0,2714.9,7.48917]
[1739601714967,0.759,2715.8,2715.5,3.0]
[1739601715174,0.6593,2715.7,2715.5,4.52559171]
[1739601716387,0.759,2715.8,2715.5,4.52559171]
[1739601718572,0.759,2715.8,2715.5,8.20814171]
[1739601718772,0.759,2715.8,2715.5,4.52559171]
[1739601719184,0.759,2715.8,2715.5,8.20810171]
[1739601719884,0.7733,2716.1,2715.7,4.52559171]
[1739601720091,0.7733,2716.4,2716.0,5.20746171]
[1739601721167,5.31,2716.6,2716.2,5.20714171]
[1739601721367,5.31,2716.6,2716.2,6.01724171]
[1739601721778,5.31,2716.6,2716.4,1.52559171]
[1739601722182,5.31,2716.6,2716.5,3.0]
[1739601722579,6.0833,2716.9,2716.5,3.0]
[1739601725493,6.0833,2716.9,2716.5,7.349243]
[1739601725865,5.31,2716.9,2716.6,3.68104]
[1739601726055,4.19829737,2717.1,2716.6,4.49114]
[1739601727098,7.87878737,2717.1,2716.6,0.8101]
[1739601729405,4.19829737,2717.1,2716.6,0.8101]
[1739601729592,4.19829737,2717.1,2716.6,5.3070833]
[1739601730278,3.42499737,2717.1,2716.7,3.68088]
[1739601732893,3.42499737,2717.1,2717.0,3.0]
[1739601734477,3.42499737,2717.1,2716.9,3.0]
[1739601736800,3.42499737,2717.1,2716.6,1.6260333]
[1739601736801,3.42499737,2717.1,2716.6,8.3070633]
[1739601737001,0.7576,2717.0,2716.4,0.8196]
[1739601737184,3.6807,2716.9,2716.4,0.8196]
[1739601737805,3.6807,2716.9,2716.4,3.7196]
[1739601738113,3.6807,2716.9,2716.3,3.0]
[1739601738281,3.68089,2716.8,2716.3,3.0]
[1739601739631,4.47815,2716.7,2716.3,3.0]
[1739601739794,5.294035,2716.7,2716.1,3.0]
[1739601739997,5.294035,2716.7,2716.1,6.68166]
[1739601740197,5.294035,2716.7,2716.3,3.0]
[1739601740587,1.613085,2716.7,2716.3,3.0]
[1739601744082,0.7972,2716.9,2716.3,3.0]
[1739601744273,0.7972,2716.9,2716.5,3.68118]
[1739601744611,5.31,2717.0,2716.6,3.0]
[1739601746198,5.31,2717.0,2716.8,3.0]
[1739601748215,4.46751,2716.9,2716.3,0.7719]
[1739601748417,3.68081,2716.8,2716.3,3.7719]
[1739601749570,3.68094,2716.7,2716.1,3.0]
[1739601749818,3.68094,2716.7,2716.0,4.45371]
[1739601749819,4.46787,2716.6,2716.0,4.45371]
[1739601750891,4.46787,2716.6,2716.1,3.0]
[1739601751627,3.68124,2716.5,2716.0,3.0]
[1739601751925,3.68147,2716.3,2715.7,3.0]
[1739601752126,3.68147,2716.3,2715.7,6.68228]
[1739601752289,4.496361,2716.4,2715.7,3.0]
[1739601752490,4.496361,2716.4,2715.9,3.0]
[1739601755112,3.68148,2716.3,2715.7,3.0]
[1739601755310,0.7868,2716.2,2715.7,3.0]
[1739601755506,3.68176,2716.1,2715.4,3.68261]
[1739601755708,3.68176,2716.1,2715.5,3.0]
[1739601756121,0.7868,2716.2,2715.5,3.0]
[1739601756328,4.46842,2716.2,2715.7,3.0]
[1739601756511,5.41828041,2716.2,2715.7,3.0]
[1739601757049,0.7868,2716.2,2715.7,6.68219]
[1739601757228,3.6814,2716.4,2715.8,4.45405]
[1739601757617,3.6814,2716.4,2715.8,4.45396]
[1739601757822,3.6814,2716.4,2715.9,3.68201]
[1739601758902,6.0968,2716.5,2715.9,3.68201]
[1739601759544,6.0968,2716.5,2715.9,7.795607]
[1739601760338,6.0968,2716.5,2715.9,6.68201]
[1739601760539,9.77803,2716.5,2715.9,6.68201]
[1739601760739,9.77803,2716.5,2715.9,3.0]
[1739601761242,8.99123,2716.5,2716.1,3.0]
[1739601761420,3.68123,2716.5,2716.1,3.0]
[1739601761625,3.68123,2716.5,2715.9,3.0]
[1739601761806,3.68123,2716.5,2715.9,6.682]
[1739601763645,3.68135,2716.4,2715.9,3.0]
[1739601763810,0.768,2716.3,2715.9,3.0]
[1739601765248,4.44948,2716.3,2715.8,0.7719]
[1739601765424,0.768,2716.3,2715.8,0.7719]
[1739601766617,0.768,2716.3,2715.9,3.0]
[1739601767810,0.768,2716.3,2715.9,7.427403]
[1739601768217,4.44922,2716.5,2715.9,7.427403]
[1739601769815,4.44922,2716.5,2715.9,3.745403]
[1739601770020,3.68137,2716.4,2715.9,3.0]
[1739601774852,0.7833,2716.2,2715.7,3.0]
[1739601775059,4.46493,2716.2,2715.7,3.0]
[1739601777958,0.7833,2716.2,2715.7,3.0]
[1739601778182,3.6821,2715.9,2715.3,3.13915699]
[1739601778463,0.8277,2715.8,2715.2,4.50571]
[1739601778974,0.8277,2715.8,2715.3,3.0]
[1739601780666,0.8277,2715.8,2715.3,9.82191699]
[1739601780860,0.8277,2715.8,2715.4,3.68267]
[1739601781359,0.8277,2715.8,2715.4,5.1154167]
[1739601781550,0.8277,2716.0,2715.4,5.1154167]
[1739601781751,4.5096,2716.0,2715.4,5.1153567]
[1739601782253,4.5096,2716.0,2715.4,3.68261]
[1739601783778,3.6821,2715.9,2715.3,6.13915699]
[1739601783966,3.6821,2715.9,2715.3,9.82197699]
[1739601784173,0.8277,2715.8,2715.3,6.13915699]
[1739601784482,0.8277,2715.8,2715.4,3.6826]
[1739601784956,0.8277,2715.8,2715.3,6.13915699]
[1739601785556,0.8277,2715.8,2715.3,9.82195699]
[1739601788348,0.8277,2715.8,2715.3,3.0]
[1739601788578,0.450973,2715.7,2715.3,3.0]
[1739601788779,0.8277,2715.6,2715.1,3.0]
[1739601788977,0.8277,2715.6,2715.1,6.68306]
[1739601790897,4.51013,2715.6,2715.1,3.0]
[1739601791181,0.7602,2715.5,2714.8,3.68345]
[1739601791379,3.68271,2715.4,2714.8,3.68345]
[1739601791758,0.7602,2715.3,2714.8,3.68345]
[1739601792867,4.44311,2715.3,2714.7,7.62790699]
[1739601793583,4.44311,2715.3,2714.8,3.0]
[1739601793752,0.7602,2715.3,2714.8,3.0]
[1739601794155,0.7602,2715.3,2714.8,6.68342]
[1739601794981,0.7602,2715.3,2714.8,3.0]
[1739601795145,4.44305,2715.3,2714.8,3.0]
[1739601795661,0.7602,2715.3,2714.8,6.68348]
[1739601798681,3.6827,2715.4,2715.3,0.0918]
[1739601798885,4.419226,2715.4,2715.3,0.0918]
[1739601801467,5.179426,2715.4,2715.3,0.0918]
[1739601806973,10.489426,2715.4,2715.3,0.0918]
[1739601812004,11.039426,2715.4,2715.3,0.0918]
[1739601812703,3.68397,2714.5,2714.1,0.8292]
[1739601812893,4.45217,2714.5,2714.1,0.8292]
[1739601813099,4.45217,2714.5,2714.1,1.280593]
[1739601813313,4.45217,2714.5,2713.9,3.68473]
[1739601814903,3.68421,2714.3,2713.9,3.0]
[1739601816229,0.7682,2714.2,2713.8,0.8292]
[1739601822522,4.45253,2714.2,2713.8,0.8292]
[1739601824522,0.7682,2714.2,2713.8,0.8292]
[1739601825728,0.7682,2714.2,2713.8,2.35419131]
[1739601829218,0.7682,2714.2,2713.9,3.0]
[1739601829652,0.7682,2714.2,2713.8,2.35419131]
[1739601830012,0.7682,2714.2,2713.8,5.35419131]
[1739601830411,0.7682,2714.2,2713.8,6.03905131]
[1739601832828,0.7578,2714.0,2713.2,5.21060131]
[1739601833031,0.7578,2713.8,2713.3,3.68554]
[1739601834235,3.68437,2714.2,2713.6,1.52499131]
[1739601834463,0.7578,2713.9,2712.8,2.31159131]
[1739601834770,0.7578,2713.4,2713.0,3.0]
[1739601835766,0.7578,2713.4,2713.0,4.52499131]
[1739601836067,0.7578,2713.0,2712.4,1.52499131]
[1739601836255,0.7578,2713.0,2712.4,5.21165131]
[1739601836459,0.7578,2713.0,2712.4,6.18016444]
[1739601837061,0.263,2713.1,2712.8,1.52499131]
[1739601837258,0.264,2713.5,2713.0,5.21094131]
[1739601837440,3.68476,2713.9,2712.8,3.0]
[1739601837441,0.8053,2714.0,2713.4,1.52499131]
[1739601837636,0.264,2713.9,2713.3,3.95709387]
[1739601837956,0.264,2713.9,2713.6,3.0]
[1739601838354,1.25428,2714.0,2713.5,3.68524]
[1739601838537,1.25428,2714.0,2713.6,3.0]
[1739601839369,1.25428,2714.0,2713.5,3.0]
[1739601839780,4.205018,2713.9,2713.4,3.0]
[1739601840094,3.68505,2713.7,2713.2,3.0]
[1739601840293,3.68505,2713.7,2713.0,3.7757]
[1739601840495,0.7577,2713.8,2713.2,3.0]
[1739601840795,4.4426,2713.8,2713.2,3.0]
[1739601840989,3.68511,2713.7,2713.0,7.46165]
[1739601841195,3.68511,2713.7,2713.0,3.0]
[1739601842292,0.7577,2713.6,2713.0,3.0]
[1739601842474,3.68534,2713.5,2713.0,3.0]
[1739601843295,0.7577,2713.6,2713.0,3.0]
[1739601843499,4.44284,2713.6,2713.0,3.0]
[1739601843999,0.7577,2713.6,2713.2,3.0]
[1739601846002,5.31,2713.7,2713.2,3.0]
[1739601846171,5.31,2713.7,2713.4,3.0]
[1739601846872,5.31,2713.7,2713.5,3.68527]
[1739601847473,5.31,2713.7,2713.4,3.0]
[1739601848403,5.31,2713.7,2713.4,6.6854]
[1739601848785,5.31,2713.7,2713.4,3.0]
[1739601850712,9.894505,2713.7,2713.2,3.0]
[1739601851009,9.894505,2713.7,2713.2,6.68567]
[1739601851216,9.894505,2713.7,2713.2,3.0]
[1739601853613,9.894505,2713.7,2713.2,6.68568]
[1739601854209,9.894505,2713.7,2713.2,3.0]
[1739601856609,4.50485,2713.6,2713.2,3.0]
[1739601856979,0.8197,2713.6,2713.2,3.0]
[1739601857779,1.43267,2713.6,2712.9,0.8183]
[1739601858207,3.68536,2713.5,2712.9,3.8183]
[1739601858380,3.68557,2713.3,2712.9,3.8183]
[1739601858591,3.68557,2713.3,2712.9,0.8183]
[1739601859093,3.68557,2713.3,2712.8,3.0]
[1739601859295,3.68583,2713.1,2712.7,0.7528]
[1739601859496,3.68583,2713.1,2712.5,0.7528]
[1739601859696,4.46382,2712.8,2712.2,0.7528]
[1739601860423,4.46382,2712.8,2712.2,3.7528]
[1739601860822,3.68637,2712.7,2712.2,3.7528]
[1739601861033,3.6865,2712.6,2712.2,0.7528]
[1739601862521,4.46382,2712.8,2712.2,3.7528]
[1739601862692,3.68636,2712.7,2712.2,3.7528]
[1739601863994,4.46384,2712.8,2712.2,8.59226621]
[1739601866731,3.68636,2712.7,2712.2,8.59226621]
[1739601868637,3.68636,2712.7,2712.2,4.90524621]
[1739601869407,3.68636,2712.7,2712.2,8.59226621]
[1739601869824,3.68636,2712.7,2712.2,4.90524621]
[1739601870190,4.46386,2712.8,2712.2,8.59225621]
[1739601870745,0.7776,2712.8,2712.3,3.6869]
[1739601870895,3.68625,2712.8,2712.3,3.6869]
[1739601871229,3.68611,2712.9,2712.2,8.59216621]
[1739601871630,3.68625,2712.8,2712.2,8.59216621]
[1739601872231,3.68611,2712.9,2712.2,8.59216621]
[1739601872425,7.3723,2712.9,2712.2,8.59216621]
[1739601872729,3.68634,2712.8,2712.2,3.7528]